fUST/lending_fUST_20240229
["ID","MTS","AMOUNT","RATE_DAILY","PERIOD"]
[315592216,1709137840176,-500.0,0.00019726,2]
[315592218,1709137840185,-573.53998793,0.00019726,2]
[315592221,1709137840195,-532.4,0.00019726,2]
[315592223,1709137840205,-500.0,0.00019726,2]
[315592225,1709137840215,-163.042116,0.00019726,2]
[315592227,1709137840224,-500.0,0.00019726,2]
[315592229,1709137840234,-500.0,0.00019726,2]
[315592231,1709137840244,-1038.55,0.00019726,2]
[315592233,1709137840257,-500.0,0.00019726,2]
[315592235,1709137840266,-614.19,0.00019726,2]
[315592237,1709137840276,-589.38,0.00019726,2]
[315592239,1709137840285,-882.113432,0.00019726,2]
[315592241,1709137840295,-882.113432,0.00019726,2]
[315592243,1709137840304,-991.88,0.00019726,2]
[315592245,1709137840314,-759.0,0.00019726,2]
[315592247,1709137840322,-84.11726443,0.00019726,2]
[315592327,1709137841077,-991.39679073,0.00019716,3]
[315592329,1709137841089,-5011.56072891,0.00019716,3]
[315592332,1709137841100,-3606.27720025,0.00019716,3]
[315592334,1709137841112,-312.2633,0.00019716,3]
[315592336,1709137841123,-8885.60198011,0.00019716,3]
[315592338,1709137841132,-924.30273557,0.00019726,2]
[315592340,1709137841142,-669.48,0.00019726,2]
[315592342,1709137841151,-500.0,0.00019726,2]
[315592344,1709137841159,-701.88,0.00019726,2]
[315592346,1709137841168,-545.48,0.00019726,2]
[315592348,1709137841177,-151.0,0.00019726,2]
[315592350,1709137841186,-151.0,0.00019726,2]
[315592352,1709137841195,-500.0,0.00019726,2]
[315592354,1709137841205,-974.4,0.00019726,2]
[315592356,1709137841214,-151.0,0.00019726,2]
[315592358,1709137841223,-861.71,0.00019726,2]
[315592360,1709137841233,-6186.33,0.00019726,2]
[315592362,1709137841242,-500.0,0.00019726,2]
[315592364,1709137841256,-500.0,0.00019726,2]
[315592366,1709137841267,-500.0,0.00019726,2]
[315592368,1709137841280,-8774.16,0.00019726,2]
[315592370,1709137841290,-976.63,0.00019726,2]
[315592372,1709137841300,-500.0,0.00019726,2]
[315592374,1709137841311,-500.0,0.00019726,2]
[315592376,1709137841321,-500.0,0.00019726,2]
[315592378,1709137841331,-1400.93,0.00019726,2]
[315592380,1709137841341,-500.0,0.00019726,2]
[315592382,1709137841350,-2934.98,0.00019726,2]
[315592384,1709137841360,-3433.7,0.00019726,2]
[315592386,1709137841369,-716.03,0.00019726,2]
[315592388,1709137841379,-910.39,0.00019726,2]
[315592390,1709137841388,-1512.31,0.00019726,2]
[315592392,1709137841398,-1251.85,0.00019726,2]
[315592394,1709137841407,-151.0,0.00019726,2]
[315592396,1709137841416,-151.0,0.00019726,2]
[315592398,1709137841426,-300.0,0.000199,8]
[315592400,1709137841435,-9560.05186014,0.0001999,2]
[315592402,1709137841447,-1618.92936777,0.0001999,2]
[315592404,1709137841457,-882.113432,0.0001999,2]
[315592406,1709137841467,-882.113432,0.0001999,2]
[315592408,1709137841476,-151.0,0.0001999,2]
[315592410,1709137841485,-265.369704,0.0001999,2]
[315592412,1709137841494,-1803.56780189,0.00019999,2]
[315592414,1709137841504,-500.0,0.00019999,2]
[315592416,1709137841514,-500.0,0.00019999,2]
[315592418,1709137841523,-500.0,0.00019999,2]
[315592420,1709137841533,-635.08739956,0.00019999,2]
[315592422,1709137841542,-500.0,0.00019999,2]
[315592424,1709137841556,-500.0,0.00019999,2]
[315592426,1709137841566,-392.95024596,0.00019999,2]
[315592428,1709137841575,-160.0,0.0002,2]
[315592429,1709137841586,-500.0,0.0002,2]
[315592430,1709137841599,-500.0,0.0002,2]
[315592431,1709137841608,-533.09,0.0002,2]
[315592432,1709137841618,-539.03,0.0002,2]
[315592433,1709137841626,-524.67,0.0002,2]
[315592434,1709137841635,-500.0,0.0002,2]
[315592435,1709137841644,-1038.55,0.0002,2]
[315592436,1709137841653,-500.0,0.0002,2]
[315592437,1709137841662,-500.0,0.0002,2]
[315592438,1709137841671,-614.19,0.0002,2]
[315592439,1709137841680,-589.38,0.0002,2]
[315592440,1709137841690,-882.113432,0.0002,2]
[315592441,1709137841698,-882.113432,0.0002,2]
[315592442,1709137841708,-1719.80671869,0.0002,3]
[315592443,1709137841717,-3096.31126671,0.0002,3]
[315592444,1709137841726,-3096.31126671,0.0002,3]
[315592445,1709137841734,-3096.31126671,0.0002,3]
[315592446,1709137841743,-3096.31126671,0.0002,3]
[315592447,1709137841755,-3096.31126671,0.0002,3]
[315592448,1709137841764,-3096.31126671,0.0002,3]
[315592449,1709137841772,-3096.31126671,0.0002,3]
[315592450,1709137841781,-3096.31126671,0.0002,3]
[315592451,1709137841790,-3096.31126671,0.0002,3]
[315592452,1709137841799,-3096.31026671,0.0002,3]
[315592453,1709137841808,-991.88,0.0002,2]
[315592454,1709137841817,-759.0,0.0002,2]
[315592455,1709137841826,-1008.42,0.0002,2]
[315592456,1709137841835,-669.48,0.0002,2]
[315592457,1709137841844,-500.0,0.0002,2]
[315592458,1709137841854,-701.88,0.0002,2]
[315592459,1709137841863,-545.48,0.0002,2]
[315592460,1709137841872,-151.0,0.0002,2]
[315592461,1709137841881,-169.41,0.0002,2]
[315592463,1709137841890,-974.4,0.0002,2]
[315592464,1709137841900,-861.71,0.0002,2]
[315592466,1709137841908,-3842.30796304,0.0002,2]
[315592613,1709137843151,-2344.02203696,0.0002,2]
[315592615,1709137843162,-500.0,0.0002,2]
[315592617,1709137843173,-500.0,0.0002,2]
[315592619,1709137843183,-1515.8209596,0.0002,2]
[315592622,1709137843195,-2655.48398633,0.0002,2]
[315592907,1709137846076,-500.0,0.00019178,2]
[315592909,1709137846086,-842.39,0.00019178,2]
[315592911,1709137846095,-391.73540002,0.00019452,2]
[315592913,1709137846104,-842.39,0.00019452,2]
[315592915,1709137846114,-842.39,0.00019726,2]
[315592917,1709137846123,-1978.59459498,0.0002,2]
[315592946,1709137846460,-0.04120446,0.0002,2]
[315601180,1709138161589,350.0,0.0002,30]
[315601181,1709138207911,-6716.0,0.00017342,2]
[315601182,1709138317606,9000.0,0.00021,21]
[315601183,1709138342454,-538.27532223,0.00017329,2]
[315601184,1709138342474,-15232.41076204,0.00017329,2]
[315601185,1709138342494,-592.46406366,0.0001733,2]
[315601186,1709138342515,-1863.17330942,0.0001733,2]
[315601187,1709138342536,-744.34995698,0.0001733,2]
[315601188,1709138342558,-2897.32658567,0.00017331,2]
[315601190,1709138401136,3510.30684253,0.000192,6]
[315601191,1709138421512,-527.76651352,0.00017328,2]
[315601192,1709138421541,-703.08553243,0.00017328,2]
[315601193,1709138421563,-400.75162755,0.00017329,2]
[315601194,1709138421584,-179.53546718,0.0001733,2]
[315601195,1709138421605,-185.35868832,0.0001733,2]
[315601196,1709138421626,-71.502171,0.00017331,2]
[315601197,1709138492349,-155.15515516,0.00017324,2]
[315601198,1709138492369,-2111.64420487,0.00017324,2]
[315601199,1709138492390,-4465.20063997,0.00017325,2]
[315601200,1709138565515,-31.17124333,0.00017331,2]
[315601201,1709138565540,-26.8083315,0.00017342,2]
[315601202,1709138565565,-1155.02042517,0.00017394,2]
[315601203,1709138703127,-179.53546718,0.00017286,2]
[315601204,1709138703148,-527.76651352,0.00017286,2]
[315601205,1709138703170,-15232.41076204,0.00017286,2]
[315601206,1709138703191,-24522.28725726,0.00017287,2]
[315601207,1709138739568,250.0,0.0001701,2]
[315601208,1709138764308,5282.95320769,0.0001701,2]
[315601209,1709138782435,5282.95320769,0.0001701,2]
[315601210,1709138784937,2831.1683569,0.00017124,2]
[315601211,1709138806271,5282.95320769,0.0001701,2]
[315601212,1709138822265,326.42356278,0.00017124,2]
[315601213,1709138823260,-362.25746344,0.00017281,2]
[315601214,1709138823282,-155.15515516,0.00017281,2]
[315601215,1709138823305,-185.35868832,0.00017282,2]
[315601216,1709138823325,-703.08553243,0.00017283,2]
[315601217,1709138823346,-2457.81887025,0.00017286,2]
[315601218,1709138823368,-377.71274274,0.00017287,2]
[315601219,1709138823388,-1650.9812518,0.00017394,2]
[315601220,1709138823408,-109.63029586,0.00017395,2]
[315601225,1709138892380,-363.57823484,0.00017395,2]
[315601226,1709138892403,-5444.5321749,0.00018,2]
[315601227,1709138892426,-179.53546718,0.00018899,2]
[315601228,1709138892449,-378.81122735,0.000189,2]
[315601229,1709138892472,-15232.41076204,0.00018999,2]
[315601230,1709138892494,-702.3482416,0.00019,2]
[315601231,1709138892515,-16178.78389209,0.00019,2]
[315601461,1709139034581,-2457.81887025,0.00018079,2]
[315601462,1709139034591,-241.50497562,0.00018079,2]
[315601464,1709139034601,-703.08553243,0.0001808,2]
[315601466,1709139034610,-1972.8347367,0.00018081,2]
[315601468,1709139034619,-24220.74489149,0.00018125,2]
[315601471,1709139034635,-17772.04198311,0.00018125,2]
[315601473,1709139034645,-252.54081823,0.000189,2]
[315601475,1709139034654,-300.0,0.00018999,2]
[315601476,1709139034662,-49747.00666006,0.00019,2]
[315601754,1709139038393,-186.24412782,0.00018078,2]
[315601756,1709139038404,-1134.4255583,0.00018999,2]
[315601758,1709139038416,-3416.6384799,0.00018999,2]
[315601760,1709139038429,-893.4681367,0.00018999,2]
[315601762,1709139038439,-4630.59353278,0.00019,2]
[315601765,1709139038456,-319.60832048,0.00019,2]
[315601767,1709139038469,-1000.36474995,0.00019,2]
[315601769,1709139038481,-22420.23051119,0.00019,2]
[315601771,1709139038493,-72009.22235646,0.00019,2]
[315601774,1709139038508,-8267.70424258,0.00019,2]
[315601776,1709139038518,-155.15515516,0.00019,2]
[315601778,1709139038527,-6467.49782097,0.00019177,2]
[315601780,1709139038536,-1213.43171838,0.00019177,2]
[315601782,1709139038546,-500.0,0.00019178,2]
[315601784,1709139038555,-723.4,0.00019178,2]
[315601786,1709139038564,-500.0,0.00019178,2]
[315601788,1709139038574,-415.71243148,0.00019178,2]
[315601790,1709139038583,-500.0,0.00019178,2]
[315601792,1709139038592,-502.94782916,0.00019178,2]
[315601794,1709139038602,-500.0,0.00019178,2]
[315601796,1709139038612,-500.0,0.00019178,2]
[315601798,1709139038621,-500.0,0.00019178,2]
[315601800,1709139038631,-500.0,0.00019178,2]
[315601802,1709139038641,-503.94738389,0.00019178,2]
[315601804,1709139038650,-500.0,0.00019178,2]
[315601806,1709139038660,-501.60675983,0.00019178,2]
[315601808,1709139038669,-543.68572627,0.00019178,2]
[315601810,1709139038679,-153.47204912,0.00019178,2]
[315601812,1709139038688,-500.0,0.00019178,2]
[315601814,1709139038698,-500.0,0.00019178,2]
[315601816,1709139038710,-500.0,0.00019178,2]
[315601818,1709139038719,-500.0,0.00019178,2]
[315601820,1709139038729,-500.0,0.00019178,2]
[315601821,1709139038738,-500.0,0.00019178,2]
[315601822,1709139038747,-500.66949718,0.00019178,2]
[315601824,1709139038757,-500.0,0.00019178,2]
[315601826,1709139038767,-500.0,0.00019178,2]
[315601828,1709139038777,-500.0,0.00019178,2]
[315601830,1709139038786,-500.0,0.00019178,2]
[315601832,1709139038796,-500.0,0.00019178,2]
[315601834,1709139038805,-500.0,0.00019178,2]
[315601836,1709139038815,-172.36241238,0.00019178,2]
[315601838,1709139038824,-500.0,0.00019178,2]
[315601840,1709139038834,-1342.12,0.00019178,2]
[315601842,1709139038844,-260.27530511,0.00019178,2]
[315601844,1709139038852,-549.46,0.00019178,2]
[315601846,1709139038862,-492.01022913,0.00019178,2]
[315601848,1709139038871,-874.67,0.00019178,2]
[315601850,1709139038880,-500.0,0.00019178,2]
[315601852,1709139038890,-335.59961587,0.00019178,2]
[315601854,1709139038898,-228.67540805,0.00019178,2]
[315601856,1709139038907,-330.40732907,0.00019178,2]
[315601858,1709139038917,-500.0,0.00019178,2]
[315601860,1709139038926,-500.0,0.00019178,2]
[315601862,1709139038936,-500.0,0.00019178,2]
[315601864,1709139038946,-501.19388928,0.00019178,2]
[315601866,1709139038958,-500.0,0.00019178,2]
[315601868,1709139038968,-500.0,0.00019178,2]
[315601870,1709139038980,-500.0,0.00019178,2]
[315601873,1709139038990,-500.0,0.00019178,2]
[315601874,1709139038999,-500.0,0.00019178,2]
[315601876,1709139039008,-500.0,0.00019178,2]
[315601878,1709139039017,-500.96026853,0.00019178,2]
[315601880,1709139039026,-500.0,0.00019178,2]
[315601882,1709139039035,-500.0,0.00019178,2]
[315601883,1709139039045,-500.0,0.00019178,2]
[315601885,1709139039055,-155.18466976,0.00019178,2]
[315601887,1709139039066,-501.72881824,0.00019178,2]
[315601889,1709139039077,-500.0,0.00019178,2]
[315601891,1709139039087,-500.0,0.00019178,2]
[315601893,1709139039096,-500.0,0.00019178,2]
[315601895,1709139039108,-500.0,0.00019178,2]
[315601897,1709139039119,-500.0,0.00019178,2]
[315601899,1709139039127,-500.469271,0.00019178,2]
[315601901,1709139039137,-529.4,0.00019178,2]
[315601903,1709139039147,-182.44518102,0.00019178,2]
[315601905,1709139039157,-500.0,0.00019178,2]
[315601907,1709139039166,-500.0,0.00019178,2]
[315601909,1709139039175,-503.64082888,0.00019178,2]
[315601911,1709139039185,-178.33877644,0.00019178,2]
[315601913,1709139039194,-500.0,0.00019178,2]
[315601915,1709139039207,-500.0,0.00019178,2]
[315601917,1709139039216,-500.0,0.00019178,2]
[315601919,1709139039226,-957.35,0.00019178,2]
[315601921,1709139039235,-500.86552404,0.00019178,2]
[315601923,1709139039245,-500.0,0.00019178,2]
[315601925,1709139039254,-500.0,0.00019178,2]
[315601926,1709139039264,-717.28,0.00019178,2]
[315601928,1709139039274,-500.0,0.00019178,2]
[315601930,1709139039284,-500.0,0.00019178,2]
[315601932,1709139039294,-504.10606793,0.00019178,2]
[315601935,1709139039304,-710.31,0.00019178,2]
[315601937,1709139039314,-500.0,0.00019178,2]
[315601939,1709139039324,-160.04742318,0.00019178,2]
[315601940,1709139039334,-501.31366854,0.00019178,2]
[315601942,1709139039344,-500.0,0.00019178,2]
[315601944,1709139039353,-500.0,0.00019178,2]
[315601946,1709139039364,-500.0,0.00019178,2]
[315601948,1709139039376,-500.0,0.00019178,2]
[315601950,1709139039386,-500.0,0.00019178,2]
[315601952,1709139039396,-647.96689022,0.00019178,2]
[315601955,1709139039407,-1395.98,0.00019178,2]
[315601956,1709139039417,-207.63249256,0.00019178,2]
[315601959,1709139039427,-500.0,0.00019178,2]
[315601961,1709139039436,-503.59164722,0.00019178,2]
[315601963,1709139039446,-502.97392599,0.00019178,2]
[315601964,1709139039457,-500.0,0.00019178,2]
[315601967,1709139039467,-500.0,0.00019178,2]
[315601969,1709139039477,-500.0,0.00019178,2]
[315601970,1709139039487,-9141.0,0.00019178,2]
[315601972,1709139039496,-500.0,0.00019178,2]
[315601975,1709139039506,-224.38369584,0.00019178,2]
[315601976,1709139039515,-500.0,0.00019178,2]
[315601979,1709139039525,-500.52339344,0.00019178,2]
[315601981,1709139039536,-500.0,0.00019178,2]
[315601984,1709139039545,-500.0,0.00019178,2]
[315601986,1709139039555,-500.0,0.00019178,2]
[315601987,1709139039564,-500.0,0.00019178,2]
[315601990,1709139039576,-500.0,0.00019178,2]
[315601992,1709139039586,-500.0,0.00019178,2]
[315601994,1709139039596,-1305.54,0.00019178,2]
[315601996,1709139039605,-500.0,0.00019178,2]
[315601997,1709139039614,-500.0,0.00019178,2]
[315601999,1709139039625,-500.0,0.00019178,2]
[315602001,1709139039634,-500.0,0.00019178,2]
[315602003,1709139039644,-500.0,0.00019178,2]
[315602005,1709139039653,-500.0,0.00019178,2]
[315602007,1709139039663,-500.0,0.00019178,2]
[315602009,1709139039673,-629.58,0.00019178,2]
[315602011,1709139039682,-500.0,0.00019178,2]
[315602013,1709139039691,-1987.71,0.00019178,2]
[315602015,1709139039700,-500.0,0.00019178,2]
[315602017,1709139039712,-567.18,0.00019178,2]
[315602019,1709139039721,-3985.24,0.00019178,2]
[315602021,1709139039731,-500.0,0.00019178,2]
[315602023,1709139039740,-500.0,0.00019178,2]
[315602025,1709139039750,-255.55957885,0.00019178,2]
[315602026,1709139039759,-500.0,0.00019178,2]
[315602028,1709139039769,-500.0,0.00019178,2]
[315602030,1709139039779,-500.0,0.00019178,2]
[315602032,1709139039788,-443.88223375,0.00019178,2]
[315602034,1709139039798,-500.0,0.00019178,2]
[315602036,1709139039807,-1108.86,0.00019178,2]
[315602038,1709139039816,-500.0,0.00019178,2]
[315602040,1709139039825,-500.0,0.00019178,2]
[315602042,1709139039834,-1657.93,0.00019178,2]
[315602044,1709139039844,-501.12933632,0.00019178,2]
[315602046,1709139039853,-500.17553005,0.00019178,2]
[315602048,1709139039863,-1378.05,0.00019178,2]
[315602050,1709139039872,-11705.72,0.00019178,2]
[315602052,1709139039881,-964.43,0.00019178,2]
[315602054,1709139039890,-551.40963695,0.00019178,2]
[315602056,1709139039899,-500.0,0.00019178,2]
[315602058,1709139039908,-500.0,0.00019178,2]
[315602060,1709139039917,-500.0,0.00019178,2]
[315602062,1709139039927,-500.0,0.00019178,2]
[315602064,1709139039937,-1394.45,0.00019178,2]
[315602066,1709139039946,-500.0,0.00019178,2]
[315602068,1709139039955,-500.23352583,0.00019178,2]
[315602070,1709139039966,-500.0,0.00019178,2]
[315602071,1709139039982,-500.0,0.00019178,2]
[315602073,1709139039991,-500.0,0.00019178,2]
[315602075,1709139040000,-500.0,0.00019178,2]
[315602077,1709139040009,-500.0,0.00019178,2]
[315602079,1709139040018,-500.0,0.00019178,2]
[315602081,1709139040027,-500.0,0.00019178,2]
[315602083,1709139040036,-1495.6,0.00019178,2]
[315602085,1709139040044,-500.0,0.00019178,2]
[315602087,1709139040054,-500.0,0.00019178,2]
[315602089,1709139040065,-925.5,0.00019178,2]
[315602091,1709139040075,-500.0,0.00019178,2]
[315602093,1709139040084,-500.0,0.00019178,2]
[315602094,1709139040093,-501.01152787,0.00019178,2]
[315602097,1709139040104,-789.03,0.00019178,2]
[315602098,1709139040114,-500.0,0.00019178,2]
[315602101,1709139040124,-500.0,0.00019178,2]
[315602103,1709139040133,-500.0,0.00019178,2]
[315602105,1709139040143,-500.0,0.00019178,2]
[315602107,1709139040152,-500.0,0.00019178,2]
[315602109,1709139040162,-500.0,0.00019178,2]
[315602111,1709139040171,-4667.89,0.00019178,2]
[315602126,1709139040305,-510.03816746,0.00019178,2]
[315602128,1709139040314,-500.0,0.00019178,2]
[315602130,1709139040324,-500.0,0.00019178,2]
[315602131,1709139040333,-500.0,0.00019178,2]
[315602133,1709139040342,-500.0,0.00019178,2]
[315602134,1709139040351,-451.4417783,0.00019178,2]
[315602135,1709139040361,-500.0,0.00019178,2]
[315602136,1709139040370,-500.0,0.00019178,2]
[315602137,1709139040380,-500.0,0.00019178,2]
[315602138,1709139040389,-500.0,0.00019178,2]
[315602139,1709139040398,-500.0,0.00019178,2]
[315602140,1709139040407,-1932.04,0.00019178,2]
[315602141,1709139040417,-163.811675,0.00019178,2]
[315602142,1709139040426,-166.666666,0.00019178,2]
[315602143,1709139040435,-200.6348293,0.00019178,2]
[315602144,1709139040444,-153.0,0.00019178,2]
[315602145,1709139040454,-153.0,0.000192,2]
[315602146,1709139040465,-400.8461236,0.000192,2]
[315602147,1709139040475,-153.0,0.000192,2]
[315602148,1709139040484,-7965.77366105,0.00019252,2]
[315602149,1709139040494,-155.0,0.00019309,2]
[315602150,1709139040503,-500.0,0.00019351,2]
[315602151,1709139040513,-500.0,0.00019351,2]
[315602153,1709139040522,-154.77224955,0.00019351,2]
[315602155,1709139040530,-500.0,0.00019351,2]
[315602157,1709139040539,-500.0,0.00019351,2]
[315602159,1709139040548,-500.0,0.00019351,2]
[315602161,1709139040557,-500.0,0.00019351,2]
[315602163,1709139040567,-171.39652377,0.00019351,2]
[315602165,1709139040576,-500.0,0.00019351,2]
[315602167,1709139040585,-500.0,0.00019351,2]
[315602168,1709139040594,-500.0,0.00019351,2]
[315602170,1709139040603,-500.0,0.00019351,2]
[315602172,1709139040613,-500.0,0.00019351,2]
[315602174,1709139040622,-151.0,0.00019352,2]
[315602177,1709139040631,-62049.67774785,0.00019352,2]
[315602179,1709139040640,-306.0,0.00019362,2]
[315602181,1709139040649,-153.0,0.00019362,2]
[315602183,1709139040658,-200.6348293,0.00019362,2]
[315602185,1709139040667,-257.2198445,0.00019362,2]
[315602187,1709139040677,-153.0,0.00019362,2]
[315602189,1709139040686,-200.6348293,0.00019362,2]
[315602191,1709139040696,-200.6348293,0.00019362,2]
[315602192,1709139040705,-200.6348293,0.00019362,2]
[315602195,1709139040716,-401.2696586,0.00019362,2]
[315602197,1709139040725,-200.6117409,0.0001937,2]
[315602199,1709139040734,-200.6348293,0.0001937,2]
[315602201,1709139040744,-500.0,0.00019451,2]
[315602203,1709139040752,-500.0,0.00019452,2]
[315602205,1709139040762,-723.4,0.00019452,2]
[315602207,1709139040771,-500.0,0.00019452,2]
[315602209,1709139040779,-500.0,0.00019452,2]
[315602211,1709139040788,-500.0,0.00019452,2]
[315602213,1709139040797,-500.0,0.00019452,2]
[315602215,1709139040806,-500.0,0.00019452,2]
[315602216,1709139040816,-500.0,0.00019452,2]
[315602219,1709139040826,-500.0,0.00019452,2]
[315602221,1709139040835,-500.0,0.00019452,2]
[315602223,1709139040845,-500.0,0.00019452,2]
[315602225,1709139040854,-500.0,0.00019452,2]
[315602227,1709139040863,-500.0,0.00019452,2]
[315602229,1709139040871,-601.95546096,0.00019452,2]
[315602230,1709139040880,-1342.12,0.00019452,2]
[315602231,1709139040890,-549.46,0.00019452,2]
[315602232,1709139040899,-874.67,0.00019452,2]
[315602233,1709139040908,-508.06387981,0.00019452,2]
[315602234,1709139040918,-500.0,0.00019452,2]
[315602235,1709139040929,-500.0,0.00019452,2]
[315602236,1709139040939,-500.0,0.00019452,2]
[315602237,1709139040949,-500.0,0.00019452,2]
[315602238,1709139040959,-500.0,0.00019452,2]
[315602240,1709139040969,-151.161043,0.00019452,2]
[315602242,1709139040981,-500.0,0.00019452,2]
[315602244,1709139040990,-151.0,0.00019452,2]
[315602246,1709139040999,-500.0,0.00019452,2]
[315602248,1709139041009,-500.0,0.00019452,2]
[315602250,1709139041019,-500.0,0.00019452,2]
[315602252,1709139041027,-500.0,0.00019452,2]
[315602254,1709139041036,-500.0,0.00019452,2]
[315602256,1709139041045,-203.56927584,0.00019452,2]
[315602258,1709139041054,-529.4,0.00019452,2]
[315602260,1709139041064,-500.0,0.00019452,2]
[315602262,1709139041073,-504.70722091,0.00019452,2]
[315602264,1709139041082,-957.35,0.00019452,2]
[315602266,1709139041090,-500.0,0.00019452,2]
[315602268,1709139041101,-151.0,0.00019452,2]
[315602270,1709139041110,-234.144167,0.00019452,2]
[315602272,1709139041121,-717.28,0.00019452,2]
[315602274,1709139041130,-700.729837,0.00019452,2]
[315602276,1709139041140,-700.729837,0.00019452,2]
[315602278,1709139041150,-500.0,0.00019452,2]
[315602280,1709139041160,-710.31,0.00019452,2]
[315602282,1709139041168,-184.181505,0.00019452,2]
[315602284,1709139041178,-500.0,0.00019452,2]
[315602286,1709139041187,-500.0,0.00019452,2]
[315602288,1709139041196,-500.0,0.00019452,2]
[315602290,1709139041206,-194.64739125,0.00019452,2]
[315602292,1709139041216,-1395.98,0.00019452,2]
[315602294,1709139041225,-284.81271388,0.00019452,2]
[315602296,1709139041234,-500.0,0.00019452,2]
[315602299,1709139041243,-9141.0,0.00019452,2]
[315602301,1709139041252,-500.0,0.00019452,2]
[315602302,1709139041262,-500.0,0.00019452,2]
[315602304,1709139041271,-500.0,0.00019452,2]
[315602306,1709139041280,-1305.54,0.00019452,2]
[315602309,1709139041290,-500.0,0.00019452,2]
[315602311,1709139041299,-500.0,0.00019452,2]
[315602313,1709139041309,-500.0,0.00019452,2]
[315602315,1709139041319,-629.58,0.00019452,2]
[315602317,1709139041327,-500.0,0.00019452,2]
[315602319,1709139041337,-1987.71,0.00019452,2]
[315602321,1709139041346,-500.0,0.00019452,2]
[315602322,1709139041356,-567.18,0.00019452,2]
[315602325,1709139041366,-151.0,0.00019452,2]
[315602326,1709139041375,-3985.24,0.00019452,2]
[315602328,1709139041385,-500.0,0.00019452,2]
[315602330,1709139041394,-500.0,0.00019452,2]
[315602332,1709139041404,-500.0,0.00019452,2]
[315602334,1709139041414,-500.0,0.00019452,2]
[315602336,1709139041423,-500.0,0.00019452,2]
[315602339,1709139041433,-1108.86,0.00019452,2]
[315602341,1709139041443,-500.0,0.00019452,2]
[315602343,1709139041453,-500.0,0.00019452,2]
[315602345,1709139041464,-1657.93,0.00019452,2]
[315602347,1709139041473,-1378.05,0.00019452,2]
[315602348,1709139041482,-11705.72,0.00019452,2]
[315602350,1709139041491,-964.43,0.00019452,2]
[315602352,1709139041501,-298.46954899,0.00019452,2]
[315602355,1709139041511,-1394.45,0.00019452,2]
[315602356,1709139041521,-500.0,0.00019452,2]
[315602358,1709139041532,-500.0,0.00019452,2]
[315602361,1709139041541,-500.0,0.00019452,2]
[315602363,1709139041550,-503.21731564,0.00019452,2]
[315602364,1709139041559,-500.0,0.00019452,2]
[315602367,1709139041569,-500.0,0.00019452,2]
[315602369,1709139041578,-500.0,0.00019452,2]
[315602371,1709139041587,-1495.6,0.00019452,2]
[315602373,1709139041597,-503.86862046,0.00019452,2]
[315602375,1709139041609,-500.0,0.00019452,2]
[315602377,1709139041618,-925.5,0.00019452,2]
[315602379,1709139041628,-500.0,0.00019452,2]
[315602381,1709139041638,-500.0,0.00019452,2]
[315602383,1709139041647,-789.03,0.00019452,2]
[315602385,1709139041657,-502.0534196,0.00019452,2]
[315602387,1709139041666,-504.84550085,0.00019452,2]
[315602389,1709139041675,-500.0,0.00019452,2]
[315602391,1709139041684,-500.0,0.00019452,2]
[315602393,1709139041694,-500.0,0.00019452,2]